fUST/lending_fUST_20250314
["ID","MTS","AMOUNT","RATE_DAILY","PERIOD"]
[356085930,1741891841372,-508.84888212,0.00013698,2]
[356085931,1741891841382,-510.39748269,0.00013698,2]
[356085932,1741891841392,-500.0,0.00013698,2]
[356085933,1741891841402,-483.109078,0.00013698,2]
[356085934,1741891841414,-483.109078,0.00013698,2]
[356085935,1741891841424,-500.0,0.00013698,2]
[356085936,1741891841434,-511.92909255,0.00013698,2]
[356085937,1741891841443,-483.109078,0.00013698,2]
[356085938,1741891841453,-483.109078,0.00013698,2]
[356085939,1741891841463,-500.0,0.00013698,2]
[356085940,1741891841478,-483.109078,0.00013698,2]
[356085941,1741891841488,-483.109072,0.00013698,2]
[356085942,1741891841498,-500.0,0.00013698,2]
[356085943,1741891841507,-2592.265306,0.00013698,2]
[356085944,1741891841518,-2592.265306,0.00013698,2]
[356085945,1741891841528,-2592.265306,0.00013698,2]
[356085946,1741891841538,-500.0,0.00013698,2]
[356085947,1741891841548,-596.63958741,0.00013698,2]
[356085948,1741891841558,-2592.265306,0.00013698,2]
[356085949,1741891841568,-2592.265306,0.00013698,2]
[356085950,1741891841578,-2592.265311,0.00013698,2]
[356085951,1741891841587,-500.0,0.00013698,2]
[356085952,1741891841597,-501.18265796,0.00013698,2]
[356085953,1741891841610,-500.0,0.00013698,2]
[356085954,1741891841620,-500.0,0.00013698,2]
[356085955,1741891841629,-500.0,0.00013698,2]
[356085956,1741891841639,-511.83149971,0.00013698,2]
[356085957,1741891841650,-500.0,0.00013698,2]
[356085958,1741891841659,-500.0,0.00013698,2]
[356085959,1741891841669,-500.0,0.00013698,2]
[356085960,1741891841678,-506.3308149,0.00013698,2]
[356085961,1741891841688,-514.11048571,0.00013698,2]
[356085962,1741891841697,-500.0,0.00013698,2]
[356085963,1741891841707,-500.0,0.00013698,2]
[356085964,1741891841716,-629.88387154,0.00013698,2]
[356085965,1741891841726,-593.24,0.00013698,2]
[356085966,1741891841735,-503.88191401,0.00013698,2]
[356085967,1741891841745,-500.0,0.00013698,2]
[356085968,1741891841754,-500.0,0.00013698,2]
[356085969,1741891841764,-500.0,0.00013698,2]
[356085970,1741891841773,-500.0,0.00013698,2]
[356085971,1741891841783,-500.81239302,0.00013698,2]
[356085972,1741891841792,-500.0,0.00013698,2]
[356085973,1741891841801,-1110.45,0.00013698,2]
[356085974,1741891841811,-1110.45,0.00013698,2]
[356085975,1741891841820,-1110.45,0.00013698,2]
[356085976,1741891841830,-1110.45,0.00013698,2]
[356085977,1741891841839,-1110.45,0.00013698,2]
[356085978,1741891841849,-1110.45,0.00013698,2]
[356085979,1741891841860,-1110.45,0.00013698,2]
[356085980,1741891841869,-1110.45,0.00013698,2]
[356085981,1741891841878,-1110.45,0.00013698,2]
[356085982,1741891841888,-1110.45,0.00013698,2]
[356085983,1741891841897,-1110.45,0.00013698,2]
[356085984,1741891841906,-1110.45,0.00013698,2]
[356085985,1741891841916,-1110.45,0.00013698,2]
[356085986,1741891841926,-1110.45,0.00013698,2]
[356085987,1741891841935,-1110.45,0.00013698,2]
[356085988,1741891841945,-1110.45,0.00013698,2]
[356085989,1741891841955,-1110.45,0.00013698,2]
[356085990,1741891841965,-1110.45,0.00013698,2]
[356085991,1741891841974,-1110.45,0.00013698,2]
[356085992,1741891841983,-1110.45,0.00013698,2]
[356085993,1741891841993,-1110.45,0.00013698,2]
[356085994,1741891842003,-1110.45,0.00013698,2]
[356085995,1741891842014,-1110.45,0.00013698,2]
[356085996,1741891842023,-1110.55150911,0.00013698,2]
[356085997,1741891842033,-513.89824865,0.00013698,2]
[356085998,1741891842043,-500.0,0.00013698,2]
[356085999,1741891842055,-500.0,0.00013698,2]
[356086000,1741891842065,-504.26963279,0.00013698,2]
[356086001,1741891842075,-500.0,0.00013698,2]
[356086002,1741891842085,-500.0,0.00013698,2]
[356086003,1741891842094,-500.0,0.00013698,2]
[356086004,1741891842104,-502.72405492,0.00013698,2]
[356086005,1741891842116,-500.0,0.00013698,2]
[356086006,1741891842126,-500.0,0.00013698,2]
[356086007,1741891842135,-500.0,0.00013698,2]
[356086008,1741891842145,-500.0,0.00013698,2]
[356086009,1741891842155,-500.0,0.00013698,2]
[356086010,1741891842166,-500.0,0.00013698,2]
[356086011,1741891842175,-500.0,0.00013698,2]
[356086012,1741891842185,-500.0,0.00013698,2]
[356086013,1741891842195,-510.46386375,0.00013698,2]
[356086014,1741891842204,-500.0,0.00013698,2]
[356086015,1741891842214,-500.0,0.00013698,2]
[356086016,1741891842223,-500.0,0.00013698,2]
[356086017,1741891842233,-500.0,0.00013698,2]
[356086018,1741891842242,-500.0,0.00013698,2]
[356086019,1741891842252,-500.0,0.00013698,2]
[356086020,1741891842262,-1468.625034,0.00013698,2]
[356086021,1741891842271,-1468.625042,0.00013698,2]
[356086022,1741891842281,-519.81290491,0.00013698,2]
[356086023,1741891842290,-500.0,0.00013698,2]
[356086024,1741891842300,-500.0,0.00013698,2]
[356086025,1741891842309,-500.0,0.00013698,2]
[356086026,1741891842319,-500.0,0.00013698,2]
[356086027,1741891842329,-500.48005734,0.00013698,2]
[356086028,1741891842338,-500.0,0.00013698,2]
[356086029,1741891842348,-502.54162725,0.00013698,2]
[356086030,1741891842357,-601.74,0.00013698,2]
[356086031,1741891842368,-601.74,0.00013698,2]
[356086032,1741891842378,-601.74,0.00013698,2]
[356086033,1741891842387,-601.74,0.00013698,2]
[356086034,1741891842397,-601.74,0.00013698,2]
[356086035,1741891842406,-601.74,0.00013698,2]
[356086036,1741891842416,-601.74,0.00013698,2]
[356086037,1741891842425,-601.74,0.00013698,2]
[356086038,1741891842435,-601.74,0.00013698,2]
[356086039,1741891842444,-601.74,0.00013698,2]
[356086040,1741891842454,-601.74,0.00013698,2]
[356086041,1741891842464,-500.0,0.00013698,2]
[356086042,1741891842474,-601.74,0.00013698,2]
[356086043,1741891842487,-601.74,0.00013698,2]
[356086044,1741891842497,-601.74,0.00013698,2]
[356086045,1741891842507,-601.74,0.00013698,2]
[356086046,1741891842516,-601.74,0.00013698,2]
[356086047,1741891842527,-601.74,0.00013698,2]
[356086048,1741891842536,-601.74,0.00013698,2]
[356086049,1741891842545,-601.74,0.00013698,2]
[356086050,1741891842557,-601.74,0.00013698,2]
[356086051,1741891842567,-501.89361331,0.00013698,2]
[356086052,1741891842577,-500.0,0.00013698,2]
[356086053,1741891842586,-601.74,0.00013698,2]
[356086054,1741891842596,-601.74,0.00013698,2]
[356086055,1741891842605,-601.74,0.00013698,2]
[356086056,1741891842617,-601.96742106,0.00013698,2]
[356086057,1741891842627,-500.0,0.00013698,2]
[356086058,1741891842637,-500.0,0.00013698,2]
[356086059,1741891842647,-500.0,0.00013698,2]
[356086060,1741891842657,-484.289832,0.00013698,2]
[356086061,1741891842667,-512.21107916,0.00013698,2]
[356086062,1741891842676,-510.56331208,0.00013698,2]
[356086063,1741891842686,-484.289842,0.00013698,2]
[356086064,1741891842696,-500.0,0.00013698,2]
[356086065,1741891842705,-500.0,0.00013698,2]
[356086066,1741891842714,-500.0,0.00013698,2]
[356086067,1741891842724,-507.84770004,0.00013698,2]
[356086068,1741891842733,-500.0,0.00013698,2]
[356086069,1741891842743,-500.0,0.00013698,2]
[356086070,1741891842752,-500.0,0.00013698,2]
[356086071,1741891842762,-500.0,0.00013698,2]
[356086072,1741891842771,-500.0,0.00013698,2]
[356086073,1741891842780,-507.95520907,0.00013698,2]
[356086074,1741891842790,-500.0,0.00013698,2]
[356086075,1741891842799,-500.0,0.00013698,2]
[356086076,1741891842809,-500.0,0.00013698,2]
[356086077,1741891842818,-500.0,0.00013698,2]
[356086078,1741891842828,-500.0,0.00013698,2]
[356086079,1741891842838,-502.39873304,0.00013698,2]
[356086080,1741891842847,-500.0,0.00013698,2]
[356086081,1741891842857,-501.46863318,0.00013698,2]
[356086082,1741891842867,-499.90477547,0.00013698,2]
[356086083,1741891842877,-501.73850752,0.00013698,2]
[356086084,1741891842886,-507.01683904,0.00013698,2]
[356086085,1741891842895,-614.49,0.00013698,2]
[356086086,1741891842904,-501.78778021,0.00013698,2]
[356086087,1741891842914,-510.34603388,0.00013698,2]
[356086088,1741891842923,-503.62671418,0.00013698,2]
[356086089,1741891842932,-517.7666807,0.00013698,2]
[356086090,1741891842942,-151.0,0.00013698,2]
[356086091,1741891842952,-500.65014859,0.00013698,2]
[356086092,1741891842962,-526.31,0.00013698,2]
[356086093,1741891842972,-500.0,0.00013698,2]
[356086094,1741891842983,-500.0,0.00013698,2]
[356086095,1741891842992,-500.0,0.00013698,2]
[356086096,1741891843001,-500.0,0.00013698,2]
[356086097,1741891843011,-511.51129685,0.00013698,2]
[356086098,1741891843020,-505.20052089,0.00013698,2]
[356086099,1741891843029,-500.0,0.00013698,2]
[356086100,1741891843039,-500.0,0.00013698,2]
[356086101,1741891843049,-500.0,0.00013698,2]
[356086102,1741891843058,-500.0,0.00013698,2]
[356086103,1741891843067,-500.0,0.00013698,2]
[356086104,1741891843077,-502.40028053,0.00013698,2]
[356086105,1741891843086,-500.0,0.00013698,2]
[356086107,1741891843096,-500.0,0.00013698,2]
[356086109,1741891843105,-500.0,0.00013698,2]
[356086111,1741891843116,-500.0,0.00013698,2]
[356086113,1741891843126,-500.0,0.00013698,2]
[356086115,1741891843135,-500.0,0.00013698,2]
[356086117,1741891843144,-2441.28,0.00013698,2]
[356086120,1741891843154,-500.0,0.00013698,2]
[356086122,1741891843163,-500.0,0.00013698,2]
[356086124,1741891843173,-506.72670827,0.00013698,2]
[356086126,1741891843182,-502.93872273,0.00013698,2]
[356086128,1741891843191,-500.0,0.00013698,2]
[356086129,1741891843201,-500.0,0.00013698,2]
[356086131,1741891843210,-509.16342648,0.00013698,2]
[356086133,1741891843219,-500.0,0.00013698,2]
[356086134,1741891843228,-500.0,0.00013698,2]
[356086135,1741891843238,-500.0,0.00013698,2]
[356086137,1741891843247,-507.1804608,0.00013698,2]
[356086138,1741891843256,-500.0,0.00013698,2]
[356086140,1741891843265,-500.0,0.00013698,2]
[356086141,1741891843274,-503.12106329,0.00013698,2]
[356086143,1741891843283,-500.0,0.00013698,2]
[356086145,1741891843294,-500.0,0.00013698,2]
[356086146,1741891843303,-503.04406053,0.00013698,2]
[356086147,1741891843312,-500.0,0.00013698,2]
[356086149,1741891843322,-978.24,0.00013698,2]
[356086151,1741891843331,-507.83154395,0.00013698,2]
[356086153,1741891843340,-500.0,0.00013698,2]
[356086155,1741891843350,-506.41309732,0.00013698,2]
[356086157,1741891843359,-500.0,0.00013698,2]
[356086158,1741891843368,-500.0,0.00013698,2]
[356086160,1741891843378,-504.30286377,0.00013698,2]
[356086162,1741891843387,-500.0,0.00013698,2]
[356086163,1741891843396,-580.61,0.00013698,2]
[356086165,1741891843405,-500.0,0.00013698,2]
[356086167,1741891843415,-658.3,0.00013698,2]
[356086169,1741891843424,-510.34030173,0.00013698,2]
[356086171,1741891843434,-502.13182986,0.00013698,2]
[356086173,1741891843443,-500.0,0.00013698,2]
[356086174,1741891843452,-503.25035083,0.00013698,2]
[356086176,1741891843461,-500.0,0.00013698,2]
[356086178,1741891843471,-500.0,0.00013698,2]
[356086180,1741891843482,-500.0,0.00013698,2]
[356086181,1741891843492,-512.46781398,0.00013698,2]
[356086182,1741891843501,-500.0,0.00013698,2]
[356086184,1741891843510,-500.0,0.00013698,2]
[356086186,1741891843521,-500.0,0.00013698,2]
[356086188,1741891843530,-500.66274961,0.00013698,2]
[356086189,1741891843540,-517.02,0.00013698,2]
[356086191,1741891843549,-509.53035426,0.00013698,2]
[356086193,1741891843561,-500.0,0.00013698,2]
[356086195,1741891843572,-500.0,0.00013698,2]
[356086197,1741891843581,-1483.72,0.00013698,2]
[356086199,1741891843590,-601.31,0.00013698,2]
[356086201,1741891843599,-500.0,0.00013698,2]
[356086203,1741891843772,-829.48,0.00013698,2]
[356086204,1741891843783,-360.480206,0.00013698,2]
[356086205,1741891843793,-501.78147689,0.00013698,2]
[356086206,1741891843802,-501.5712987,0.00013698,2]
[356086207,1741891843812,-500.0,0.00013698,2]
[356086208,1741891843821,-500.0,0.00013698,2]
[356086209,1741891843831,-507.27645972,0.00013698,2]
[356086210,1741891843840,-153.467212,0.00013698,2]
[356086211,1741891843849,-360.480214,0.00013698,2]
[356086212,1741891843859,-514.64280014,0.00013698,2]
[356086213,1741891843870,-501.82778392,0.00013698,2]
[356086214,1741891843880,-500.0,0.00013698,2]
[356086215,1741891843890,-500.0,0.00013698,2]
[356086216,1741891843900,-153.467218,0.00013698,2]
[356086217,1741891843909,-500.0,0.00013698,2]
[356086218,1741891843919,-503.6403858,0.00013698,2]
[356086219,1741891843928,-500.0,0.00013698,2]
[356086220,1741891843937,-500.0,0.00013698,2]
[356086221,1741891843947,-500.0,0.00013698,2]
[356086222,1741891843956,-500.0,0.00013698,2]
[356086223,1741891843966,-500.0,0.00013698,2]
[356086225,1741891843975,-500.0,0.00013698,2]
[356086226,1741891843985,-500.0,0.00013698,2]
[356086227,1741891843994,-500.0,0.00013698,2]
[356086228,1741891844004,-500.0,0.00013698,2]
[356086229,1741891844013,-500.0,0.00013698,2]
[356086230,1741891844023,-500.0,0.00013698,2]
[356086231,1741891844032,-500.0,0.00013698,2]
[356086232,1741891844041,-500.0,0.00013698,2]
[356086233,1741891844050,-192.55268469,0.00013698,2]
[356086234,1741891844059,-500.0,0.00013698,2]
[356086235,1741891844069,-500.0,0.00013698,2]
[356086236,1741891844078,-500.0,0.00013698,2]
[356086237,1741891844087,-500.0,0.00013698,2]
[356086238,1741891844097,-500.0,0.00013698,2]
[356086239,1741891844106,-500.0,0.00013698,2]
[356086240,1741891844119,-500.0,0.00013698,2]
[356086241,1741891844129,-500.0,0.00013698,2]
[356086242,1741891844138,-502.10662525,0.00013698,2]
[356086243,1741891844147,-503.18577546,0.00013698,2]
[356086244,1741891844156,-502.61609136,0.00013698,2]
[356086245,1741891844166,-500.0,0.00013698,2]
[356086246,1741891844175,-506.8510662,0.00013698,2]
[356086247,1741891844184,-508.90278942,0.00013698,2]
[356086248,1741891844194,-503.58823774,0.00013698,2]
[356086249,1741891844204,-500.0,0.00013698,2]
[356086250,1741891844214,-1036.887148,0.00013698,2]
[356086251,1741891844224,-502.12257157,0.00013698,2]
[356086252,1741891844234,-503.06850465,0.00013698,2]
[356086253,1741891844244,-514.05308193,0.00013698,2]
[356086254,1741891844253,-703.46,0.00013698,2]
[356086255,1741891844263,-500.0,0.00013698,2]
[356086256,1741891844272,-500.0,0.00013698,2]
[356086257,1741891844282,-1036.887152,0.00013698,2]
[356086258,1741891844291,-505.72894011,0.00013698,2]
[356086259,1741891844301,-500.0,0.00013698,2]
[356086260,1741891844310,-500.0,0.00013698,2]
[356086261,1741891844320,-513.74578559,0.00013698,2]
[356086262,1741891844329,-857.67,0.00013698,2]
[356086263,1741891844338,-500.0,0.00013698,2]
[356086264,1741891844348,-591.2,0.00013698,2]
[356086265,1741891844357,-517.62074171,0.00013698,2]
[356086266,1741891844368,-500.42711437,0.00013698,2]
[356086267,1741891844378,-500.0,0.00013698,2]
[356086268,1741891844387,-505.06483801,0.00013698,2]
[356086269,1741891844396,-500.0,0.00013698,2]
[356086270,1741891844406,-508.93669909,0.00013698,2]
[356086271,1741891844415,-503.71359699,0.00013698,2]
[356086272,1741891844424,-500.0,0.00013698,2]
[356086273,1741891844434,-500.0,0.00013698,2]
[356086274,1741891844443,-3810.03,0.00013698,2]
[356086275,1741891844453,-3810.03,0.00013698,2]
[356086276,1741891844462,-3810.03,0.00013698,2]
[356086277,1741891844475,-3810.03,0.00013698,2]
[356086278,1741891844486,-3810.03,0.00013698,2]
[356086279,1741891844495,-500.0,0.00013698,2]
[356086280,1741891844504,-3810.03,0.00013698,2]
[356086281,1741891844515,-3810.03,0.00013698,2]
[356086282,1741891844524,-3810.03,0.00013698,2]
[356086283,1741891844533,-3810.03,0.00013698,2]
[356086284,1741891844543,-3810.03,0.00013698,2]
[356086285,1741891844552,-628.71,0.00013698,2]
[356086286,1741891844563,-3810.03,0.00013698,2]
[356086287,1741891844572,-3810.03,0.00013698,2]
[356086288,1741891844582,-3810.03,0.00013698,2]
[356086289,1741891844591,-3810.03,0.00013698,2]
[356086290,1741891844600,-3810.03,0.00013698,2]
[356086291,1741891844611,-500.0,0.00013698,2]
[356086292,1741891844620,-3810.03,0.00013698,2]
[356086293,1741891844629,-3810.03,0.00013698,2]
[356086294,1741891844639,-3810.03,0.00013698,2]
[356086295,1741891844648,-3810.03,0.00013698,2]
[356086296,1741891844657,-3810.03,0.00013698,2]
[356086297,1741891844667,-500.0,0.00013698,2]
[356086298,1741891844676,-3810.03,0.00013698,2]
[356086299,1741891844685,-3810.03,0.00013698,2]
[356086300,1741891844694,-3810.03,0.00013698,2]
[356086301,1741891844703,-3810.0478041,0.00013698,2]
[356086302,1741891844713,-500.0,0.00013698,2]
[356086303,1741891844722,-500.0,0.00013698,2]
[356086304,1741891844731,-500.0,0.00013698,2]
[356086305,1741891844740,-512.04719375,0.00013698,2]
[356086306,1741891844752,-503.36221424,0.00013698,2]
[356086307,1741891844762,-500.0,0.00013698,2]
[356086308,1741891844771,-509.9522686,0.00013698,2]
[356086309,1741891844780,-500.0,0.00013698,2]
[356086310,1741891844790,-500.0,0.00013698,2]
[356086311,1741891844799,-509.38777739,0.00013698,2]
[356086312,1741891844809,-500.0,0.00013698,2]
[356086313,1741891844818,-500.0,0.00013698,2]
[356086314,1741891844829,-500.0,0.00013698,2]
[356086315,1741891844838,-2252.0,0.00013698,2]
[356086316,1741891844848,-2252.0,0.00013698,2]
[356086317,1741891844857,-2252.0,0.00013698,2]
[356086318,1741891844869,-1860.54,0.00013698,2]
[356086319,1741891844880,-421.70025636,0.00013698,2]
[356086320,1741891844889,-2252.0,0.00013698,2]
[356086321,1741891844898,-509.52026538,0.00013698,2]
[356086322,1741891844908,-2252.0,0.00013698,2]
[356086323,1741891844917,-2252.0,0.00013698,2]
[356086324,1741891844927,-2252.0,0.00013698,2]
[356086325,1741891844936,-2252.0,0.00013698,2]
[356086326,1741891844945,-2252.0,0.00013698,2]
[356086327,1741891844955,-500.0,0.00013698,2]
[356086328,1741891844964,-2252.0,0.00013698,2]
[356086329,1741891844973,-500.0,0.00013698,2]
[356086330,1741891844982,-2252.0,0.00013698,2]
[356086331,1741891844991,-2252.0,0.00013698,2]
[356086332,1741891845001,-2252.0,0.00013698,2]
[356086333,1741891845011,-2252.0,0.00013698,2]
[356086334,1741891845020,-2252.0,0.00013698,2]
[356086335,1741891845030,-2252.0,0.00013698,2]
[356086336,1741891845039,-2252.0,0.00013698,2]
[356086337,1741891845048,-2252.0,0.00013698,2]
[356086338,1741891845058,-2252.0,0.00013698,2]
[356086339,1741891845068,-2252.0,0.00013698,2]
[356086340,1741891845078,-437.17350572,0.00013698,2]
[356086341,1741891845088,-2252.0,0.00013698,2]
[356086342,1741891845097,-2252.0,0.00013698,2]
[356086343,1741891845107,-500.0,0.00013698,2]
[356086344,1741891845118,-2252.0,0.00013698,2]
[356086345,1741891845128,-2252.17273985,0.00013698,2]
[356086346,1741891845137,-500.0,0.00013698,2]
[356086347,1741891845146,-188.0,0.00013698,2]
[356086348,1741891845155,-1218.64,0.00013698,2]
[356086349,1741891845165,-949.4,0.00013698,2]
[356086350,1741891845174,-500.0,0.00013698,2]
[356086351,1741891845183,-500.0,0.00013698,2]
[356086352,1741891845193,-500.0,0.00013698,2]
[356086353,1741891845202,-509.24375626,0.00013698,2]
[356086354,1741891845211,-500.0,0.00013698,2]
[356086355,1741891845221,-507.99948116,0.00013698,2]
[356086356,1741891845231,-519.71750922,0.00013698,2]
[356086357,1741891845241,-500.0,0.00013698,2]
[356086358,1741891845251,-1772.42,0.00013698,2]
[356086359,1741891845260,-508.67191383,0.00013698,2]
[356086360,1741891845270,-500.0,0.00013698,2]
[356086361,1741891845279,-500.0,0.00013698,2]
[356086362,1741891845288,-500.35774187,0.00013698,2]
[356086363,1741891845298,-511.64736824,0.00013698,2]
[356086364,1741891845307,-500.47575813,0.00013698,2]
[356086365,1741891845317,-500.0,0.00013698,2]
[356086366,1741891845326,-500.0,0.00013698,2]
[356086367,1741891845335,-264.664627,0.00013698,2]
[356086368,1741891845345,-904.56,0.00013698,2]
[356086369,1741891845354,-511.70696288,0.00013698,2]
[356086370,1741891845364,-503.17373007,0.00013698,2]
[356086371,1741891845374,-500.0,0.00013698,2]
[356086372,1741891845384,-500.44826099,0.00013698,2]
[356086373,1741891845393,-500.0,0.00013698,2]
[356086374,1741891845403,-264.664625,0.00013698,2]
[356086375,1741891845412,-513.45822009,0.00013698,2]
[356086376,1741891845421,-500.0,0.00013698,2]
[356086377,1741891845431,-514.44376667,0.00013698,2]
[356086378,1741891845440,-500.0,0.00013698,2]
[356086379,1741891845449,-2403.72,0.00013698,2]
[356086380,1741891845459,-520.0521543,0.00013698,2]
[356086381,1741891845468,-1529.55,0.00013698,2]
[356086382,1741891845479,-510.18794204,0.00013698,2]
[356086383,1741891845490,-502.039134,0.00013698,2]
[356086384,1741891845500,-501.35276525,0.00013698,2]
[356086385,1741891845509,-501.04390035,0.00013698,2]
[356086386,1741891845518,-500.0,0.00013698,2]
[356086387,1741891845529,-510.99807772,0.00013698,2]
[356086388,1741891845539,-505.96563084,0.00013698,2]
[356086389,1741891845548,-500.0,0.00013698,2]
[356086390,1741891845559,-500.80627576,0.00013698,2]
[356086391,1741891845568,-500.0,0.00013698,2]
[356086392,1741891845577,-507.81572209,0.00013698,2]
[356086393,1741891845587,-500.0,0.00013698,2]
[356086394,1741891845596,-500.0,0.00013698,2]
[356086395,1741891845605,-508.64302264,0.00013698,2]
[356086396,1741891845615,-500.0,0.00013698,2]
[356086397,1741891845624,-500.0,0.00013698,2]
[356086398,1741891845634,-500.0,0.00013698,2]
[356086399,1741891845643,-500.0,0.00013698,2]
[356086400,1741891845652,-500.0,0.00013698,2]
[356086401,1741891845662,-589.75,0.00013698,2]
[356086402,1741891845671,-1013.07,0.00013698,2]
[356086403,1741891845680,-500.0,0.00013698,2]
[356086404,1741891845689,-500.0,0.00013698,2]
[356086405,1741891845698,-500.0,0.00013698,2]
[356086406,1741891845707,-506.21562677,0.00013698,2]
[356086407,1741891845717,-500.0,0.00013698,2]
[356086408,1741891845726,-500.0,0.00013698,2]
[356086409,1741891845736,-505.00350425,0.00013698,2]
[356086410,1741891845745,-523.18346323,0.00013698,2]
[356086411,1741891845755,-427.690529,0.00013698,2]
[356086412,1741891845765,-500.0,0.00013698,2]
[356086413,1741891845775,-500.0,0.00013698,2]
[356086414,1741891845784,-500.0,0.00013698,2]
[356086415,1741891845794,-500.0,0.00013698,2]
[356086416,1741891845803,-992.99,0.00013698,2]
[356086417,1741891845812,-508.22075716,0.00013698,2]
[356086418,1741891845822,-500.0,0.00013698,2]
[356086419,1741891845831,-537.21,0.00013698,2]
[356086420,1741891845841,-624.22,0.00013698,2]
[356086421,1741891845851,-500.0,0.00013698,2]
[356086422,1741891845862,-1367.599944,0.00013698,2]
[356086423,1741891845871,-500.0,0.00013698,2]
[356086424,1741891845881,-1367.599946,0.00013698,2]
[356086425,1741891845890,-511.02777016,0.00013698,2]
[356086426,1741891845899,-517.84268474,0.00013698,2]
[356086427,1741891845909,-500.0,0.00013698,2]
[356086428,1741891845918,-500.0,0.00013698,2]
[356086429,1741891845927,-512.94204931,0.00013698,2]
[356086430,1741891845936,-500.0,0.00013698,2]
[356086431,1741891845946,-1995.49,0.00013698,2]
[356086432,1741891845956,-500.0,0.00013698,2]
[356086433,1741891845965,-1688.23,0.00013698,2]
[356086434,1741891845974,-1688.23,0.00013698,2]
[356086435,1741891845983,-1688.23,0.00013698,2]
[356086437,1741891845993,-1688.23,0.00013698,2]
[356086438,1741891846002,-1688.23,0.00013698,2]
[356086439,1741891846012,-1688.23,0.00013698,2]
[356086440,1741891846021,-1688.23,0.00013698,2]
[356086441,1741891846031,-1688.23,0.00013698,2]
[356086442,1741891846040,-1688.23,0.00013698,2]
[356086443,1741891846050,-500.0,0.00013698,2]
[356086444,1741891846059,-1688.23,0.00013698,2]
[356086445,1741891846068,-507.44025917,0.00013698,2]
[356086447,1741891846078,-1688.23,0.00013698,2]
[356086448,1741891846087,-1688.23,0.00013698,2]
[356086449,1741891846095,-1688.23,0.00013698,2]
[356086450,1741891846105,-1688.23,0.00013698,2]
[356086451,1741891846117,-948.69,0.00013698,2]
[356086452,1741891846127,-1000.0,0.00013698,2]
[356086453,1741891846136,-1688.23,0.00013698,2]
[356086454,1741891846146,-1688.23,0.00013698,2]
[356086455,1741891846155,-1688.23,0.00013698,2]
[356086456,1741891846164,-1688.23,0.00013698,2]
[356086457,1741891846174,-1688.23,0.00013698,2]
[356086458,1741891846183,-1688.23,0.00013698,2]
[356086459,1741891846192,-1688.23,0.00013698,2]
[356086460,1741891846202,-508.77087728,0.00013698,2]
[356086461,1741891846211,-1688.23,0.00013698,2]
[356086462,1741891846220,-1688.23,0.00013698,2]
[356086463,1741891846229,-1688.2879333,0.00013698,2]
[356086464,1741891846239,-1030.10820767,0.00013698,2]
[356086465,1741891846248,-521.11,0.00013698,2]
[356086466,1741891846257,-500.0,0.00013698,2]
[356086467,1741891846266,-500.0,0.00013698,2]
[356086468,1741891846275,-500.0,0.00013698,2]
[356086469,1741891846285,-506.68066835,0.00013698,2]
[356086470,1741891846294,-500.0,0.00013698,2]
[356086471,1741891846303,-526.6617665,0.00013698,2]
[356086472,1741891846313,-1243.33,0.00013698,2]
[356086473,1741891846322,-575.61809089,0.00013698,2]
[356086474,1741891846331,-500.0,0.00013698,2]
[356086475,1741891846340,-500.0,0.00013698,2]